[Event "*** Titled Tuesday Blitz"]
[Site "Chess.com"]
[Date "2019.04.02"]
[Round "2"]
[White "Eliwood44"]
[Black "TheMagician"]
[Result "1-0"]
[WhiteElo "2216"]
[BlackElo "2266"]
[TimeControl "180+2"]
[EndTime "14:16:47 PDT"]
[Termination "Eliwood44 won by checkmate"]

1. d4 {[%clk 0:03:01.9]} 1... Nf6 {[%clk 0:03:00.5]} 2. Nf3 {[%clk 0:02:59.8]}
2... d5 {[%clk 0:03:01.4]} 3. c4 {[%clk 0:02:59.9]} 3... c6 {[%clk 0:03:02.5]}
4. Qc2 {[%clk 0:03:00.4]} 4... g6 {[%clk 0:03:02.9]} 5. Nc3 {[%clk 0:03:00.7]}
5... Bg7 {[%clk 0:03:01.6]} 6. Bf4 {[%clk 0:03:01.2]} 6... O-O {[%clk
0:03:01.7]} 7. e3 {[%clk 0:03:02.2]} 7... Nbd7 {[%clk 0:02:54.2]} 8. cxd5 {[%clk
0:03:00.8]} 8... Nxd5 {[%clk 0:02:51.7]} 9. Nxd5 {[%clk 0:03:01.3]} 9... cxd5
{[%clk 0:02:52.7]} 10. Be2 {[%clk 0:03:02.2]} 10... Nf6 {[%clk 0:02:52.9]} 11.
O-O {[%clk 0:03:01.7]} 11... Bf5 {[%clk 0:02:53.7]} 12. Qb3 {[%clk 0:03:01.9]}
12... Nh5 {[%clk 0:02:49]} 13. Be5 {[%clk 0:02:56.2]} 13... Bxe5 {[%clk
0:02:47.4]} 14. Nxe5 {[%clk 0:02:56.7]} 14... Nf6 {[%clk 0:02:48.3]} 15. Qxb7
{[%clk 0:02:50.6]} 15... Rb8 {[%clk 0:02:48.4]} 16. Qxa7 {[%clk 0:02:51.7]}
16... Rxb2 {[%clk 0:02:48.9]} 17. Bf3 {[%clk 0:02:50.5]} 17... Qa8 {[%clk
0:02:48]} 18. Qxe7 {[%clk 0:02:47.3]} 18... Ne4 {[%clk 0:02:49]} 19. Bxe4 {[%clk
0:02:41.3]} 19... Bxe4 {[%clk 0:02:48.1]} 20. Nd7 {[%clk 0:02:42.3]} 20... Rd8
{[%clk 0:02:36.3]} 21. Nf6+ {[%clk 0:02:41.1]} 21... Kg7 {[%clk 0:02:33]} 22.
Qe5 {[%clk 0:02:40]} 22... Kh6 {[%clk 0:02:27.5]} 23. Ng4# {[%clk 0:02:38.5]}
1-0

[Event "*** Titled Tuesday Blitz"]
[Site "Chess.com"]
[Date "2019.04.02"]
[Round "2"]
[White "ElGasanov"]
[Black "larajanzelj"]
[Result "1-0"]
[WhiteElo "2685"]
[BlackElo "2356"]
[TimeControl "180+2"]
[EndTime "14:17:02 PDT"]
[Termination "ElGasanov won by resignation"]

1. d4 {[%clk 0:03:00.7]} 1... d5 {[%clk 0:03:00.8]} 2. c4 {[%clk 0:02:59.5]}
2... dxc4 {[%clk 0:02:58.7]} 3. e3 {[%clk 0:02:58.3]} 3... b5 {[%clk 0:02:59.1]}
4. a4 {[%clk 0:02:58.1]} 4... b4 {[%clk 0:02:59.9]} 5. Qf3 {[%clk 0:02:57.1]}
5... c6 {[%clk 0:03:00.5]} 6. Bxc4 {[%clk 0:02:58.2]} 6... e6 {[%clk 0:03:01]}
7. Ne2 {[%clk 0:02:59.5]} 7... Nf6 {[%clk 0:03:01.7]} 8. e4 {[%clk 0:02:58.8]}
8... Bb7 {[%clk 0:03:01.3]} 9. e5 {[%clk 0:02:59.3]} 9... Nd5 {[%clk 0:03:02.2]}
10. O-O {[%clk 0:02:55.9]} 10... Be7 {[%clk 0:03:01.7]} 11. Qg3 {[%clk
0:02:56.5]} 11... g6 {[%clk 0:02:48.4]} 12. Nd2 {[%clk 0:02:52.1]} 12... c5
{[%clk 0:02:46.1]} 13. Ne4 {[%clk 0:02:51]} 13... cxd4 {[%clk 0:02:45.8]} 14.
Bg5 {[%clk 0:02:49.9]} 14... h6 {[%clk 0:02:37.8]} 15. Nd6+ {[%clk 0:02:47.4]}
15... Kf8 {[%clk 0:02:22.7]} 16. Nxb7 {[%clk 0:02:47.6]} 16... Qc7 {[%clk
0:02:17.1]} 17. Bxe7+ {[%clk 0:02:43.3]} 17... Nxe7 {[%clk 0:02:19]} 18. Nd6
{[%clk 0:02:43]} 18... Nbc6 {[%clk 0:02:19.7]} 19. Qf3 {[%clk 0:02:35]} 19...
Nf5 {[%clk 0:02:16.1]} 20. Nxf5 {[%clk 0:02:35.4]} 20... gxf5 {[%clk 0:02:16.5]}
21. Bb5 {[%clk 0:02:30.5]} 1-0

[Event "*** Titled Tuesday Blitz"]
[Site "Chess.com"]
[Date "2019.04.02"]
[Round "2"]
[White "platy3"]
[Black "nabukatnezarr"]
[Result "1-0"]
[WhiteElo "2782"]
[BlackElo "2567"]
[TimeControl "180+2"]
[EndTime "14:17:12 PDT"]
[Termination "platy3 won by resignation"]

1. c4 {[%clk 0:03:01.9]} 1... Nf6 {[%clk 0:03:00.6]} 2. Nc3 {[%clk 0:03:02.7]}
2... c5 {[%clk 0:02:59.6]} 3. Nf3 {[%clk 0:03:02.2]} 3... b6 {[%clk 0:02:55.5]}
4. d4 {[%clk 0:02:55.5]} 4... cxd4 {[%clk 0:02:57.4]} 5. Nxd4 {[%clk 0:02:57.4]}
5... Bb7 {[%clk 0:02:58.8]} 6. f3 {[%clk 0:02:58.9]} 6... d6 {[%clk 0:02:52]} 7.
e4 {[%clk 0:02:59.3]} 7... e6 {[%clk 0:02:53.3]} 8. Be2 {[%clk 0:03:00.5]} 8...
Nbd7 {[%clk 0:02:54.4]} 9. Be3 {[%clk 0:03:01.7]} 9... a6 {[%clk 0:02:55.7]} 10.
O-O {[%clk 0:03:03.1]} 10... Be7 {[%clk 0:02:57.2]} 11. Qd2 {[%clk 0:03:02.5]}
11... O-O {[%clk 0:02:58.2]} 12. b4 {[%clk 0:03:02.7]} 12... d5 {[%clk
0:02:31.3]} 13. exd5 {[%clk 0:02:55.3]} 13... exd5 {[%clk 0:02:23.8]} 14. Nxd5
{[%clk 0:02:56.3]} 14... Bxd5 {[%clk 0:02:19.7]} 15. cxd5 {[%clk 0:02:57.1]}
15... Nxd5 {[%clk 0:02:21.6]} 16. Nc6 {[%clk 0:02:54.1]} 16... Nxe3 {[%clk
0:01:56.2]} 17. Nxd8 {[%clk 0:02:48.5]} 17... Nxf1 {[%clk 0:01:57.4]} 18. Qxd7
{[%clk 0:02:48.9]} 1-0

[Event "*** Titled Tuesday Blitz"]
[Site "Chess.com"]
[Date "2019.04.02"]
[Round "2"]
[White "Alexander_Donchenko"]
[Black "MasterKroket"]
[Result "1-0"]
[WhiteElo "2837"]
[BlackElo "2381"]
[TimeControl "180+2"]
[EndTime "14:17:38 PDT"]
[Termination "Alexander_Donchenko won by resignation"]

1. e4 {[%clk 0:03:01.9]} 1... c5 {[%clk 0:02:52.3]} 2. Nf3 {[%clk 0:03:02.3]}
2... e6 {[%clk 0:02:53.5]} 3. d4 {[%clk 0:03:03.4]} 3... cxd4 {[%clk 0:02:55.4]}
4. Nxd4 {[%clk 0:03:05.3]} 4... Nc6 {[%clk 0:02:56.5]} 5. Nc3 {[%clk 0:03:06.4]}
5... Qc7 {[%clk 0:02:57.6]} 6. Be3 {[%clk 0:03:07.2]} 6... a6 {[%clk 0:02:58.9]}
7. Qd2 {[%clk 0:03:07.5]} 7... Nf6 {[%clk 0:03:00.4]} 8. f3 {[%clk 0:03:08.3]}
8... Bb4 {[%clk 0:03:00.2]} 9. a3 {[%clk 0:03:08.2]} 9... Ba5 {[%clk 0:02:57.3]}
10. O-O-O {[%clk 0:03:03.1]} 10... Ne5 {[%clk 0:02:54.6]} 11. Nb3 {[%clk
0:02:55.7]} 11... Bxc3 {[%clk 0:02:52.6]} 12. Qxc3 {[%clk 0:02:56.9]} 12... Qxc3
{[%clk 0:02:49.6]} 13. bxc3 {[%clk 0:02:58.8]} 13... d5 {[%clk 0:02:50.3]} 14.
Bd4 {[%clk 0:02:56.2]} 14... Nc4 {[%clk 0:02:25.6]} 15. exd5 {[%clk 0:02:53.3]}
15... exd5 {[%clk 0:02:21]} 16. Re1+ {[%clk 0:02:54.4]} 16... Be6 {[%clk
0:02:17]} 17. Nc5 {[%clk 0:02:53.6]} 17... O-O {[%clk 0:02:02.2]} 18. Nxe6
{[%clk 0:02:52.2]} 18... fxe6 {[%clk 0:02:03.5]} 19. Bxc4 {[%clk 0:02:53.2]}
19... dxc4 {[%clk 0:02:05.4]} 20. Rxe6 {[%clk 0:02:54.2]} 20... Nd5 {[%clk
0:01:49.8]} 21. Rhe1 {[%clk 0:02:50.9]} 21... h6 {[%clk 0:01:46.4]} 22. R1e5
{[%clk 0:02:43.9]} 22... Nf4 {[%clk 0:01:43.7]} 23. Re7 {[%clk 0:02:36.9]} 23...
Rf7 {[%clk 0:01:44.8]} 24. Rxf7 {[%clk 0:02:37.1]} 1-0

[Event "*** Titled Tuesday Blitz"]
[Site "Chess.com"]
[Date "2019.04.02"]
[Round "2"]
[White "kingofthenil"]
[Black "vpantev"]
[Result "1-0"]
[WhiteElo "2427"]
[BlackElo "2577"]
[TimeControl "180+2"]
[EndTime "14:17:49 PDT"]
[Termination "kingofthenil won by resignation"]

1. d4 {[%clk 0:03:01.9]} 1... Nf6 {[%clk 0:03:00.3]} 2. c4 {[%clk 0:03:03.3]}
2... e6 {[%clk 0:03:01.3]} 3. Nc3 {[%clk 0:03:04.4]} 3... Bb4 {[%clk 0:03:02.8]}
4. a3 {[%clk 0:03:06]} 4... Bxc3+ {[%clk 0:03:03.5]} 5. bxc3 {[%clk 0:03:07.9]}
5... d6 {[%clk 0:03:04.3]} 6. f3 {[%clk 0:03:08.8]} 6... e5 {[%clk 0:03:05.3]}
7. e4 {[%clk 0:03:10.1]} 7... O-O {[%clk 0:03:05.1]} 8. Bd3 {[%clk 0:03:11]}
8... c5 {[%clk 0:03:04.8]} 9. Ne2 {[%clk 0:03:12]} 9... Nc6 {[%clk 0:03:04.5]}
10. Be3 {[%clk 0:03:12.7]} 10... b6 {[%clk 0:03:04.8]} 11. O-O {[%clk
0:03:13.5]} 11... Nd7 {[%clk 0:03:03.1]} 12. Qc2 {[%clk 0:03:04.2]} 12... cxd4
{[%clk 0:03:01.1]} 13. cxd4 {[%clk 0:03:05.2]} 13... Ba6 {[%clk 0:03:02]} 14.
Qa4 {[%clk 0:02:47.6]} 14... Na5 {[%clk 0:02:48.4]} 15. Rac1 {[%clk 0:02:24.2]}
15... exd4 {[%clk 0:02:47.4]} 16. Nxd4 {[%clk 0:02:26.1]} 16... Nc5 {[%clk
0:02:46.5]} 17. Qd1 {[%clk 0:02:27.7]} 17... Rc8 {[%clk 0:02:31]} 18. Be2 {[%clk
0:02:23.1]} 18... Qf6 {[%clk 0:02:22.2]} 19. Nf5 {[%clk 0:02:21.4]} 19... Rfd8
{[%clk 0:02:17.9]} 20. Bd4 {[%clk 0:02:20.1]} 20... Qg5 {[%clk 0:02:12.7]} 21.
h4 {[%clk 0:02:10.4]} 21... Qh5 {[%clk 0:02:10.8]} 22. g4 {[%clk 0:01:58.1]}
22... Qh6 {[%clk 0:02:10.4]} 23. Nxh6+ {[%clk 0:01:58]} 1-0

[Event "*** Titled Tuesday Blitz"]
[Site "Chess.com"]
[Date "2019.04.02"]
[Round "2"]
[White "Perecke"]
[Black "NM2019"]
[Result "1-0"]
[WhiteElo "2072"]
[BlackElo "2154"]
[TimeControl "180+2"]
[EndTime "14:18:06 PDT"]
[Termination "Perecke won by resignation"]

1. e4 {[%clk 0:03:01.9]} 1... c5 {[%clk 0:03:00.1]} 2. Nf3 {[%clk 0:03:03.2]}
2... d6 {[%clk 0:03:01.3]} 3. d4 {[%clk 0:03:04.5]} 3... cxd4 {[%clk 0:03:02.9]}
4. Nxd4 {[%clk 0:03:06.1]} 4... Nf6 {[%clk 0:03:04.3]} 5. Nc3 {[%clk 0:03:07.5]}
5... a6 {[%clk 0:03:05.2]} 6. h3 {[%clk 0:03:08.4]} 6... e5 {[%clk 0:03:06.5]}
7. Nde2 {[%clk 0:03:09.4]} 7... Be6 {[%clk 0:03:07.9]} 8. g4 {[%clk 0:03:10.7]}
8... Be7 {[%clk 0:03:06.9]} 9. Bg2 {[%clk 0:03:11.7]} 9... Nbd7 {[%clk 0:03:08]}
10. O-O {[%clk 0:03:13]} 10... Qc7 {[%clk 0:03:09.3]} 11. Nd5 {[%clk 0:03:12.7]}
11... Bxd5 {[%clk 0:03:06.3]} 12. exd5 {[%clk 0:03:14.6]} 12... Rc8 {[%clk
0:03:04.2]} 13. Nc3 {[%clk 0:03:15]} 13... b5 {[%clk 0:03:03.8]} 14. a3 {[%clk
0:03:16.4]} 14... Nb6 {[%clk 0:03:02.5]} 15. f4 {[%clk 0:03:12.8]} 15... Qc5+
{[%clk 0:02:57.5]} 16. Kh1 {[%clk 0:03:12.2]} 16... exf4 {[%clk 0:02:53.4]} 17.
Bxf4 {[%clk 0:03:12.1]} 17... h6 {[%clk 0:02:47]} 18. Re1 {[%clk 0:03:07.4]}
18... Rc7 {[%clk 0:02:35.5]} 19. Be3 {[%clk 0:03:06.4]} 19... Qc4 {[%clk
0:02:20.8]} 20. Bf1 {[%clk 0:02:25.4]} 20... Nbxd5 {[%clk 0:02:16.7]} 21. Bxc4
{[%clk 0:02:25.4]} 21... Nxe3 {[%clk 0:02:13.6]} 22. Bxf7+ {[%clk 0:02:24.3]}
22... Kxf7 {[%clk 0:02:14.9]} 23. Rxe3 {[%clk 0:02:25.4]} 23... Rhc8 {[%clk
0:02:13.7]} 24. Nd5 {[%clk 0:02:23.6]} 24... Nxd5 {[%clk 0:02:08.7]} 25. Qxd5+
{[%clk 0:02:25.5]} 25... Kf8 {[%clk 0:02:08]} 26. Rf1+ {[%clk 0:02:25.1]} 26...
Bf6 {[%clk 0:02:09.3]} 27. Qxd6+ {[%clk 0:02:24.8]} 27... Kg8 {[%clk 0:02:10.6]}
28. Re8+ {[%clk 0:02:25.4]} 28... Kh7 {[%clk 0:02:10]} 29. Rxc8 {[%clk
0:02:24.9]} 29... Rxc8 {[%clk 0:02:11.1]} 30. Rxf6 {[%clk 0:02:23]} 1-0

[Event "*** Titled Tuesday Blitz"]
[Site "Chess.com"]
[Date "2019.04.02"]
[Round "2"]
[White "PulpanJ"]
[Black "regular_legs"]
[Result "1/2-1/2"]
[WhiteElo "2688"]
[BlackElo "2445"]
[TimeControl "180+2"]
[EndTime "14:18:53 PDT"]
[Termination "Game drawn by agreement"]

1. e4 {[%clk 0:02:58.2]} 1... c6 {[%clk 0:02:59.9]} 2. d4 {[%clk 0:02:51.5]}
2... d5 {[%clk 0:03:00.3]} 3. exd5 {[%clk 0:02:53.4]} 3... cxd5 {[%clk
0:03:00.9]} 4. Bd3 {[%clk 0:02:54.5]} 4... Nf6 {[%clk 0:03:01.3]} 5. c3 {[%clk
0:02:55.6]} 5... Qc7 {[%clk 0:03:00.4]} 6. Na3 {[%clk 0:02:52.2]} 6... a6 {[%clk
0:02:54.8]} 7. h3 {[%clk 0:02:53.2]} 7... g6 {[%clk 0:02:54.6]} 8. Ne2 {[%clk
0:02:53.2]} 8... Bf5 {[%clk 0:02:47.6]} 9. Bxf5 {[%clk 0:02:45.4]} 9... gxf5
{[%clk 0:02:49.5]} 10. Qb3 {[%clk 0:02:47.3]} 10... e6 {[%clk 0:02:46.4]} 11.
Bf4 {[%clk 0:02:48.5]} 11... Qd7 {[%clk 0:02:42.4]} 12. Be5 {[%clk 0:02:28.9]}
12... Be7 {[%clk 0:02:21.4]} 13. g4 {[%clk 0:02:29.4]} 13... fxg4 {[%clk
0:02:18]} 14. hxg4 {[%clk 0:02:31.3]} 14... Nc6 {[%clk 0:02:19.4]} 15. g5 {[%clk
0:02:27.2]} 15... Nxe5 {[%clk 0:02:19.8]} 16. dxe5 {[%clk 0:02:24.7]} 16... Ne4
{[%clk 0:02:12.6]} 17. f4 {[%clk 0:02:25.6]} 17... O-O-O {[%clk 0:02:06.7]} 18.
Rh2 {[%clk 0:02:20.2]} 18... h6 {[%clk 0:01:14.3]} 19. gxh6 {[%clk 0:02:15]}
19... Rh7 {[%clk 0:01:15.2]} 20. O-O-O {[%clk 0:02:14.4]} 20... Rdh8 {[%clk
0:01:16]} 21. Rdh1 {[%clk 0:02:15.4]} 21... Bf8 {[%clk 0:01:17.1]} 22. Nc2
{[%clk 0:02:06.6]} 22... Rxh6 {[%clk 0:01:17.2]} 23. Rxh6 {[%clk 0:02:07.8]}
23... Rxh6 {[%clk 0:01:19.1]} 24. Rxh6 {[%clk 0:02:09.1]} 24... Bxh6 {[%clk
0:01:21]} 25. Ncd4 {[%clk 0:02:06.7]} 1/2-1/2

[Event "*** Titled Tuesday Blitz"]
[Site "Chess.com"]
[Date "2019.04.02"]
[Round "2"]
[White "Tiqr777"]
[Black "rasmussvane"]
[Result "0-1"]
[WhiteElo "2637"]
[BlackElo "2780"]
[TimeControl "180+2"]
[EndTime "14:18:54 PDT"]
[Termination "rasmussvane won by resignation"]

1. c4 {[%clk 0:03:01.9]} 1... c6 {[%clk 0:02:59.1]} 2. Nf3 {[%clk 0:03:01.7]}
2... d5 {[%clk 0:03:00.5]} 3. b3 {[%clk 0:03:03.1]} 3... Bg4 {[%clk 0:03:00.3]}
4. e3 {[%clk 0:03:03.6]} 4... Nd7 {[%clk 0:03:01.2]} 5. Bb2 {[%clk 0:03:04.7]}
5... e6 {[%clk 0:03:00.7]} 6. Be2 {[%clk 0:03:05.8]} 6... Ngf6 {[%clk 0:03:01]}
7. Nc3 {[%clk 0:03:07]} 7... Bd6 {[%clk 0:03:01.9]} 8. O-O {[%clk 0:03:02.3]}
8... O-O {[%clk 0:03:02.7]} 9. d4 {[%clk 0:03:03.3]} 9... Qe7 {[%clk 0:03:03.9]}
10. h3 {[%clk 0:02:59.3]} 10... Bh5 {[%clk 0:03:04.1]} 11. Nd2 {[%clk
0:02:50.4]} 11... Bg6 {[%clk 0:03:04.3]} 12. cxd5 {[%clk 0:02:37.7]} 12... exd5
{[%clk 0:03:05.1]} 13. a3 {[%clk 0:02:33.7]} 13... a5 {[%clk 0:03:03.2]} 14. Nf3
{[%clk 0:02:30.9]} 14... Rfe8 {[%clk 0:03:03.6]} 15. Bd3 {[%clk 0:02:29.6]}
15... Bh5 {[%clk 0:02:59]} 16. Be2 {[%clk 0:02:26.7]} 16... Bc7 {[%clk
0:02:51.7]} 17. Rc1 {[%clk 0:02:23.7]} 17... Qd6 {[%clk 0:02:46.6]} 18. g3
{[%clk 0:02:24.2]} 18... Bg6 {[%clk 0:02:47.9]} 19. Nh4 {[%clk 0:02:23.4]} 19...
Be4 {[%clk 0:02:41.9]} 20. Nxe4 {[%clk 0:02:15]} 20... Nxe4 {[%clk 0:02:42.7]}
21. Ng2 {[%clk 0:02:15.7]} 21... Ndf6 {[%clk 0:02:21.9]} 22. Bd3 {[%clk
0:02:10.1]} 22... Qd7 {[%clk 0:02:15.5]} 23. Bxe4 {[%clk 0:01:55.4]} 23... Rxe4
{[%clk 0:02:07.7]} 24. f3 {[%clk 0:01:52.7]} 24... Qxh3 {[%clk 0:01:45.3]} 25.
fxe4 {[%clk 0:01:53.4]} 25... Bxg3 {[%clk 0:01:46.9]} 0-1

[Event "*** Titled Tuesday Blitz"]
[Site "Chess.com"]
[Date "2019.04.02"]
[Round "2"]
[White "WanderingPuppet"]
[Black "Raja3401"]
[Result "0-1"]
[WhiteElo "2396"]
[BlackElo "2731"]
[TimeControl "180+2"]
[EndTime "14:19:00 PDT"]
[Termination "Raja3401 won on time"]

1. e4 {[%clk 0:03:01.9]} 1... c5 {[%clk 0:03:01.1]} 2. Nf3 {[%clk 0:02:59.9]}
2... d6 {[%clk 0:03:03]} 3. d4 {[%clk 0:02:58.6]} 3... cxd4 {[%clk 0:03:04.9]}
4. Nxd4 {[%clk 0:03:00]} 4... Nf6 {[%clk 0:03:06.8]} 5. Nc3 {[%clk 0:03:00.3]}
5... a6 {[%clk 0:03:08.7]} 6. Be3 {[%clk 0:02:55.9]} 6... Ng4 {[%clk 0:03:09.3]}
7. Bg5 {[%clk 0:02:55.9]} 7... h6 {[%clk 0:03:09.9]} 8. Bc1 {[%clk 0:02:55]}
8... g5 {[%clk 0:03:11.8]} 9. h4 {[%clk 0:02:46.9]} 9... Bg7 {[%clk 0:03:11.3]}
10. Be2 {[%clk 0:02:22.3]} 10... Ne5 {[%clk 0:03:05.4]} 11. hxg5 {[%clk
0:02:21.9]} 11... hxg5 {[%clk 0:03:07.3]} 12. Rxh8+ {[%clk 0:02:21.5]} 12...
Bxh8 {[%clk 0:03:09.2]} 13. Bxg5 {[%clk 0:02:14.7]} 13... Nbc6 {[%clk
0:03:10.1]} 14. Nxc6 {[%clk 0:01:55.6]} 14... bxc6 {[%clk 0:03:10.3]} 15. f4
{[%clk 0:01:41.3]} 15... Ng6 {[%clk 0:03:01.1]} 16. Qd3 {[%clk 0:01:19.1]} 16...
Rb8 {[%clk 0:02:59.6]} 17. O-O-O {[%clk 0:01:05.6]} 17... Qa5 {[%clk 0:02:59.1]}
18. e5 {[%clk 0:00:46.1]} 18... Qb4 {[%clk 0:02:45.6]} 19. b3 {[%clk 0:00:14.2]}
19... Nxf4 {[%clk 0:02:45.6]} 20. Bxf4 {[%clk 0:00:14.5]} 20... Qxf4+ {[%clk
0:02:46.8]} 21. Rd2 {[%clk 0:00:02.1]} 21... Qxe5 {[%clk 0:02:48.7]} 0-1

[Event "*** Titled Tuesday Blitz"]
[Site "Chess.com"]
[Date "2019.04.02"]
[Round "2"]
[White "eldur16"]
[Black "Schachmalanders"]
[Result "1-0"]
[WhiteElo "2475"]
[BlackElo "2291"]
[TimeControl "180+2"]
[EndTime "14:19:22 PDT"]
[Termination "eldur16 won by resignation"]

1. e4 {[%clk 0:03:01.9]} 1... c5 {[%clk 0:03:00]} 2. Ne2 {[%clk 0:03:02]} 2...
d6 {[%clk 0:02:52.5]} 3. g3 {[%clk 0:03:02.6]} 3... Nf6 {[%clk 0:02:52.6]} 4.
Bg2 {[%clk 0:03:02.9]} 4... g6 {[%clk 0:02:53.5]} 5. c3 {[%clk 0:03:02.8]} 5...
Bg7 {[%clk 0:02:54.8]} 6. d4 {[%clk 0:03:03.7]} 6... cxd4 {[%clk 0:02:55]} 7.
cxd4 {[%clk 0:03:03.9]} 7... O-O {[%clk 0:02:54.8]} 8. Nbc3 {[%clk 0:03:04.5]}
8... Nc6 {[%clk 0:02:51.1]} 9. h3 {[%clk 0:03:03.8]} 9... Bd7 {[%clk 0:02:49.4]}
10. Be3 {[%clk 0:03:03.7]} 10... Rc8 {[%clk 0:02:49.3]} 11. O-O {[%clk
0:03:03.6]} 11... Na5 {[%clk 0:02:46.4]} 12. b3 {[%clk 0:03:01.4]} 12... Nc6
{[%clk 0:02:45.8]} 13. Qd2 {[%clk 0:03:00.7]} 13... Qa5 {[%clk 0:02:44.7]} 14.
Rac1 {[%clk 0:02:57.2]} 14... Rfd8 {[%clk 0:02:43.4]} 15. d5 {[%clk 0:02:53.9]}
15... Nb8 {[%clk 0:02:17.6]} 16. Bd4 {[%clk 0:02:50.3]} 16... Be8 {[%clk
0:02:11.2]} 17. Rc2 {[%clk 0:02:45.7]} 17... Na6 {[%clk 0:02:10.8]} 18. f4
{[%clk 0:02:30]} 18... Nb4 {[%clk 0:02:08.9]} 19. Rcc1 {[%clk 0:02:30]} 19... e5
{[%clk 0:01:38.6]} 20. fxe5 {[%clk 0:02:21.7]} 20... dxe5 {[%clk 0:01:35.2]} 21.
Be3 {[%clk 0:02:15.9]} 21... Bb5 {[%clk 0:01:11.9]} 22. a3 {[%clk 0:02:00.6]}
22... Bxe2 {[%clk 0:00:37.1]} 23. axb4 {[%clk 0:02:00.1]} 23... Qa6 {[%clk
0:00:37.7]} 1-0

[Event "*** Titled Tuesday Blitz"]
[Site "Chess.com"]
[Date "2019.04.02"]
[Round "2"]
[White "champ2005"]
[Black "lucasran"]
[Result "1-0"]
[WhiteElo "2808"]
[BlackElo "2392"]
[TimeControl "180+2"]
[EndTime "14:19:24 PDT"]
[Termination "champ2005 won by resignation"]

1. d4 {[%clk 0:03:01.5]} 1... Nf6 {[%clk 0:03:00.6]} 2. Nc3 {[%clk 0:03:02]}
2... d5 {[%clk 0:03:01.2]} 3. Bf4 {[%clk 0:03:03.1]} 3... a6 {[%clk 0:03:01.8]}
4. e3 {[%clk 0:03:03.2]} 4... e6 {[%clk 0:03:00.3]} 5. Nf3 {[%clk 0:03:03.9]}
5... Be7 {[%clk 0:02:52.4]} 6. Bd3 {[%clk 0:03:04.4]} 6... Nbd7 {[%clk 0:02:50]}
7. Ne5 {[%clk 0:03:00.1]} 7... c5 {[%clk 0:02:47.1]} 8. Qf3 {[%clk 0:03:00.1]}
8... Nxe5 {[%clk 0:02:08.4]} 9. Bxe5 {[%clk 0:02:59.9]} 9... b5 {[%clk
0:02:04.3]} 10. dxc5 {[%clk 0:02:57.3]} 10... Bxc5 {[%clk 0:02:01.1]} 11. O-O-O
{[%clk 0:02:58.3]} 11... Bb7 {[%clk 0:01:57.4]} 12. Qg3 {[%clk 0:02:57.1]} 12...
O-O {[%clk 0:01:48.1]} 13. Qh3 {[%clk 0:02:39.3]} 13... h6 {[%clk 0:01:41.8]}
14. g4 {[%clk 0:02:35.3]} 14... Nh7 {[%clk 0:01:12.8]} 15. f4 {[%clk 0:02:28.6]}
15... f6 {[%clk 0:01:00.3]} 16. Bd4 {[%clk 0:02:29.6]} 16... Bxd4 {[%clk
0:00:50.1]} 17. exd4 {[%clk 0:02:30.4]} 17... Qd6 {[%clk 0:00:52]} 18. Ne2
{[%clk 0:02:23.6]} 18... Rac8 {[%clk 0:00:51.7]} 19. Rhg1 {[%clk 0:02:17.8]}
19... b4 {[%clk 0:00:49.3]} 20. Qh5 {[%clk 0:02:16.1]} 20... Rfd8 {[%clk
0:00:34.6]} 21. g5 {[%clk 0:02:17.1]} 21... fxg5 {[%clk 0:00:31.5]} 22. fxg5
{[%clk 0:02:12.9]} 22... Nxg5 {[%clk 0:00:31.4]} 23. Rxg5 {[%clk 0:02:13.7]}
23... hxg5 {[%clk 0:00:33.3]} 24. Bh7+ {[%clk 0:02:14]} 24... Kf8 {[%clk
0:00:34]} 25. Rf1+ {[%clk 0:02:14.8]} 1-0

[Event "*** Titled Tuesday Blitz"]
[Site "Chess.com"]
[Date "2019.04.02"]
[Round "2"]
[White "RitvarsReimanis"]
[Black "robbykevlishvili"]
[Result "0-1"]
[WhiteElo "2571"]
[BlackElo "2827"]
[TimeControl "180+2"]
[EndTime "14:19:27 PDT"]
[Termination "robbykevlishvili won by resignation"]

1. d4 {[%clk 0:03:01.9]} 1... d5 {[%clk 0:03:00]} 2. c4 {[%clk 0:03:01.9]} 2...
c6 {[%clk 0:03:01.7]} 3. Nf3 {[%clk 0:03:02.4]} 3... Nf6 {[%clk 0:03:03.1]} 4.
e3 {[%clk 0:03:03.7]} 4... Bf5 {[%clk 0:03:03.2]} 5. Nc3 {[%clk 0:03:04.6]} 5...
e6 {[%clk 0:03:04.4]} 6. Nh4 {[%clk 0:03:05.3]} 6... Be4 {[%clk 0:03:06]} 7. f3
{[%clk 0:03:06.4]} 7... Bg6 {[%clk 0:03:06.8]} 8. Nxg6 {[%clk 0:02:22.4]} 8...
hxg6 {[%clk 0:03:08.7]} 9. cxd5 {[%clk 0:02:23]} 9... cxd5 {[%clk 0:03:08.5]}
10. g3 {[%clk 0:02:20.2]} 10... Bd6 {[%clk 0:03:07.7]} 11. Bg2 {[%clk 0:02:21]}
11... Rxh2 {[%clk 0:03:07.2]} 12. Rxh2 {[%clk 0:02:03.6]} 12... Bxg3+ {[%clk
0:03:06.8]} 13. Kd2 {[%clk 0:02:01.1]} 13... Bxh2 {[%clk 0:03:08.7]} 14. f4
{[%clk 0:02:01.1]} 14... Bg3 {[%clk 0:02:56.2]} 15. Qh1 {[%clk 0:01:46.2]} 15...
Nh5 {[%clk 0:02:53.9]} 16. Bf3 {[%clk 0:01:27.6]} 16... Qh4 {[%clk 0:02:49.3]}
17. Qf1 {[%clk 0:01:16.8]} 17... Nc6 {[%clk 0:02:44.4]} 18. b4 {[%clk
0:01:13.3]} 18... Qh2+ {[%clk 0:02:38.9]} 19. Kd1 {[%clk 0:01:10.7]} 19... Rc8
{[%clk 0:02:28.7]} 20. Bd2 {[%clk 0:00:59.6]} 20... Bh4 {[%clk 0:02:16.4]} 21.
b5 {[%clk 0:00:53.5]} 21... Na5 {[%clk 0:02:11.7]} 22. Rc1 {[%clk 0:00:36.2]}
22... Nc4 {[%clk 0:02:10.2]} 23. Rc2 {[%clk 0:00:36.5]} 23... Qxd2+ {[%clk
0:02:09.6]} 0-1